fUSD/lending_fUSD_20250522
["ID","MTS","AMOUNT","RATE_DAILY","PERIOD"]
[361984918,1747924248195,-669.65,0.00032876,5]
[361984920,1747924248205,-806.44,0.00032876,5]
[361984922,1747924248215,-420.0,0.00032876,5]
[361984924,1747924248225,-420.0,0.00032876,5]
[361984926,1747924248235,-612.13,0.00032876,5]
[361984928,1747924248245,-420.0,0.00032876,5]
[361984930,1747924248255,-420.0,0.00032876,5]
[361984932,1747924248265,-714.93,0.00032876,5]
[361984934,1747924248274,-420.0,0.00032876,5]
[361984936,1747924248284,-1213.48,0.00032876,5]
[361984938,1747924248294,-1045.95,0.00032876,5]
[361984940,1747924248304,-796.53,0.00032876,5]
[361984942,1747924248318,-701.14,0.00032876,5]
[361984944,1747924248328,-2487.01,0.00032876,5]
[361984946,1747924248338,-420.0,0.00032876,5]
[361984948,1747924248348,-1146.92,0.00032876,5]
[361984950,1747924248358,-420.0,0.00032876,5]
[361984952,1747924248369,-420.0,0.00032876,5]
[361984954,1747924248379,-425.26333476,0.00032876,5]
[361984956,1747924248388,-630.04,0.00032876,5]
[361984958,1747924248399,-420.0,0.00032876,5]
[361984960,1747924248408,-460.05,0.00032876,5]
[361984962,1747924248419,-1375.42,0.00032876,5]
[361984964,1747924248429,-982.21,0.00032876,5]
[361984966,1747924248439,-300.0,0.00032876,5]
[361984968,1747924248448,-966.24,0.00032876,5]
[361984970,1747924248458,-420.0,0.00032876,5]
[361984972,1747924248467,-697.98,0.00032876,5]
[361984974,1747924248477,-420.0,0.00032876,5]
[361984976,1747924248487,-1414.11,0.00032876,5]
[361984978,1747924248501,-1080.21,0.00032876,5]
[361984980,1747924248510,-489.79,0.00032876,5]
[361984982,1747924248520,-420.0,0.00032876,5]
[361984984,1747924248529,-420.0,0.00032876,5]
[361984986,1747924248540,-420.0,0.00032876,5]
[361984987,1747924248549,-689.93,0.00032876,5]
[361984989,1747924248561,-1125.93,0.00032876,5]
[361984991,1747924248571,-420.0,0.00032876,5]
[361984993,1747924248582,-420.0,0.00032876,5]
[361984995,1747924248591,-420.0,0.00032876,5]
[361984997,1747924248601,-420.0,0.00032876,5]
[361984999,1747924248610,-485.31327535,0.00032876,5]
[361985001,1747924248625,-164.39672465,0.00032876,5]
[361985003,1747924248635,-193.77100035,0.00032876,5]
[361985005,1747924248646,-393.80524653,0.00032876,5]
[361985033,1747924249333,-4909.46375312,0.00032876,5]
[361985034,1747924249350,-1196.39,0.00032876,5]
[361985035,1747924249364,-420.0,0.00032876,5]
[361985036,1747924249375,-420.0,0.00032876,5]
[361985037,1747924249385,-1142.26,0.00032876,5]
[361985038,1747924249395,-420.0,0.00032876,5]
[361985039,1747924249405,-420.0,0.00032876,5]
[361985040,1747924249415,-711.1,0.00032876,5]
[361985041,1747924249425,-420.0,0.00032876,5]
[361985042,1747924249435,-991.36,0.00032876,5]
[361985043,1747924249446,-602.6,0.00032876,5]
[361985044,1747924249456,-2291.38,0.00032876,5]
[361985045,1747924249466,-551.78052739,0.00032876,5]
[361985046,1747924249476,-832.27,0.00032876,5]
[361985047,1747924249486,-492.2,0.00032876,5]
[361985048,1747924249500,-420.0,0.00032876,5]
[361985049,1747924249512,-420.0,0.00032876,5]
[361985050,1747924249522,-420.0,0.00032876,5]
[361985051,1747924249532,-522.99,0.00032876,5]
[361985052,1747924249543,-1066.64,0.00032876,5]
[361985053,1747924249554,-1469.24,0.00032876,5]
[361985054,1747924249567,-523.42,0.00032876,5]
[361985055,1747924249579,-447.91,0.00032876,5]
[361985056,1747924249590,-420.0,0.00032876,5]
[361985057,1747924249601,-741.1,0.00032876,5]
[361985058,1747924249611,-420.0,0.00032876,5]
[361985059,1747924249621,-647.49,0.00032876,5]
[361985060,1747924249632,-454.01,0.00032876,5]
[361985061,1747924249643,-1249.41,0.00032876,5]
[361985062,1747924249654,-1588.79,0.00032876,5]
[361985063,1747924249665,-899.9,0.00032876,5]
[361985064,1747924249675,-1783.42,0.00032876,5]
[361985065,1747924249685,-420.0,0.00032876,5]
[361985066,1747924249694,-7122.31,0.00032876,5]
[361985067,1747924249704,-920.14,0.00032876,5]
[361985068,1747924249714,-621.16,0.00032876,5]
[361985069,1747924249723,-420.0,0.00032876,5]
[361985070,1747924249733,-864.55,0.00032876,5]
[361985071,1747924249742,-420.0,0.00032876,5]
[361985072,1747924249752,-451.71,0.00032876,5]
[361985073,1747924249762,-420.0,0.00032876,5]
[361985074,1747924249771,-420.0,0.00032876,5]
[361985075,1747924249781,-8706.01,0.00032876,5]
[361985076,1747924249791,-420.0,0.00032876,5]
[361985077,1747924249801,-420.0,0.00032876,5]
[361985078,1747924249813,-420.0,0.00032876,5]
[361985079,1747924249822,-420.0,0.00032876,5]
[361985080,1747924249832,-420.0,0.00032876,5]
[361985081,1747924249841,-53.99571951,0.00032876,5]
[361985082,1747924249859,-366.00428049,0.00032876,5]
[361985083,1747924249869,-774.14353642,0.00032876,5]
[361985084,1747924249882,-122.01646358,0.00032876,5]
[361985085,1747924249892,-420.0,0.00032876,5]
[361985086,1747924249902,-420.0,0.00032876,5]
[361985087,1747924249913,-420.0,0.00032876,5]
[361985088,1747924249923,-420.0,0.00032876,5]
[361985089,1747924249933,-420.0,0.00032876,5]
[361985090,1747924249944,-399.67708442,0.00032876,5]
[361985091,1747924249956,-54.91291558,0.00032876,5]
[361985092,1747924249966,-715.68208622,0.00032876,5]
[361985093,1747924249977,-242.17791378,0.00032876,5]
[361985094,1747924249987,-420.0,0.00032876,5]
[361985095,1747924249997,-656.28,0.00032876,5]
[361985096,1747924250006,-420.0,0.00032876,5]
[361985097,1747924250016,-420.0,0.00032876,5]
[361985098,1747924250026,-420.0,0.00032876,5]
[361985099,1747924250035,-507.06,0.00032876,5]
[361985100,1747924250045,-2714.03,0.00032876,5]
[361985101,1747924250054,-420.0,0.00032876,5]
[361985102,1747924250067,-846.82,0.00032876,5]
[361985103,1747924250077,-420.0,0.00032876,5]
[361985104,1747924250087,-750.65,0.00032876,5]
[361985105,1747924250096,-420.0,0.00032876,5]
[361985106,1747924250106,-1232.8,0.00032876,5]
[361985107,1747924250116,-857.63,0.00032876,5]
[361985108,1747924250126,-661.41,0.00032876,5]
[361985109,1747924250135,-732.13,0.00032876,5]
[361985110,1747924250145,-2744.77,0.00032876,5]
[361985111,1747924250155,-645.06,0.00032876,5]
[361985112,1747924250164,-420.0,0.00032876,5]
[361985113,1747924250175,-2417.3,0.00032876,5]
[361985114,1747924250184,-420.0,0.00032876,5]
[361985115,1747924250194,-420.0,0.00032876,5]
[361985116,1747924250204,-25613.49,0.00032876,5]
[361985117,1747924250213,-420.0,0.00032876,5]
[361985118,1747924250224,-1299.23,0.00032876,5]
[361985119,1747924250234,-420.0,0.00032876,5]
[361985120,1747924250243,-420.0,0.00032876,5]
[361985121,1747924250253,-420.0,0.00032876,5]
[361985122,1747924250262,-420.0,0.00032876,5]
[361985123,1747924250271,-5153.2,0.00032876,5]
[361985124,1747924250281,-420.0,0.00032876,5]
[361985125,1747924250291,-444.07,0.00032876,5]
[361985126,1747924250301,-420.0,0.00032876,5]
[361985127,1747924250311,-1987.21,0.00032876,5]
[361985128,1747924250321,-254.038258,0.00032876,7]
[361985129,1747924250330,-254.038258,0.00032876,7]
[361985130,1747924250340,-254.038258,0.00032876,7]
[361985131,1747924250350,-420.0,0.00032876,5]
[361985132,1747924250360,-420.0,0.00032876,5]
[361985133,1747924250369,-254.038258,0.00032876,7]
[361985134,1747924250379,-254.038258,0.00032876,7]
[361985135,1747924250388,-420.0,0.00032876,5]
[361985136,1747924250398,-254.038258,0.00032876,7]
[361985137,1747924250407,-254.038258,0.00032876,7]
[361985138,1747924250417,-5936.14,0.00032876,5]
[361985139,1747924250426,-420.0,0.00032876,5]
[361985140,1747924250436,-420.0,0.00032876,5]
[361985141,1747924250445,-1645.43,0.00032876,5]
[361985142,1747924250454,-254.038258,0.00032876,7]
[361985143,1747924250463,-254.038258,0.00032876,7]
[361985144,1747924250473,-254.038258,0.00032876,7]
[361985145,1747924250482,-254.038258,0.00032876,7]
[361985146,1747924250491,-254.038258,0.00032876,7]
[361985147,1747924250505,-254.038258,0.00032876,7]
[361985148,1747924250514,-254.038258,0.00032876,7]
[361985149,1747924250524,-420.0,0.00032876,5]
[361985150,1747924250534,-522.82,0.00032876,5]
[361985151,1747924250543,-420.0,0.00032876,5]
[361985152,1747924250555,-703.01,0.00032876,5]
[361985153,1747924250565,-430.97,0.00032876,5]
[361985154,1747924250575,-819.43,0.00032876,5]
[361985155,1747924250585,-563.99,0.00032876,5]
[361985156,1747924250595,-420.0,0.00032876,5]
[361985157,1747924250604,-1066.7,0.00032876,5]
[361985158,1747924250615,-509.2,0.00032876,5]
[361985159,1747924250624,-653.26,0.00032876,5]
[361985160,1747924250634,-711.68,0.00032876,5]
[361985161,1747924250643,-420.0,0.00032876,5]
[361985162,1747924250652,-485.56,0.00032876,5]
[361985163,1747924250662,-644.61531828,0.00032876,5]
[361985164,1747924250675,-67.14468172,0.00032876,5]
[361985165,1747924250684,-320.01281828,0.00032876,5]
[361985166,1747924250694,-389.91718172,0.00032876,5]
[361985167,1747924250703,-254.78628396,0.00032876,5]
[361985168,1747924250713,-595.33,0.00032876,5]
[361985169,1747924250722,-420.0,0.00032876,5]
[361985170,1747924250732,-420.0,0.00032876,5]
[361985171,1747924250741,-420.0,0.00032876,5]
[361985172,1747924250751,-420.0,0.00032876,5]
[361985173,1747924250760,-420.0,0.00032876,5]
[361985174,1747924250769,-1214.21,0.00032876,5]
[361985175,1747924250779,-934.24,0.00032876,5]
[361985176,1747924250788,-420.0,0.00032876,5]
[361985177,1747924250799,-420.0,0.00032876,5]
[361985178,1747924250808,-626.67,0.00032876,5]
[361985179,1747924250819,-420.0,0.00032876,5]
[361985180,1747924250829,-420.0,0.00032876,5]
[361985181,1747924250839,-1048.41,0.00032876,5]
[361985182,1747924250848,-1283.03,0.00032876,5]
[361985183,1747924250858,-420.0,0.00032876,5]
[361985184,1747924250867,-935.24,0.00032876,5]
[361985185,1747924250877,-420.0,0.00032876,5]
[361985186,1747924250886,-1209.85,0.00032876,5]
[361985187,1747924250896,-1344.85,0.00032876,5]
[361985188,1747924250905,-2141.76,0.00032876,2]
[361985189,1747924250915,-564.23,0.00032876,5]
[361985190,1747924250924,-420.0,0.00032876,5]
[361985191,1747924250934,-543.07,0.00032876,5]
[361985192,1747924250943,-420.0,0.00032876,5]
[361985193,1747924250952,-420.0,0.00032876,5]
[361985194,1747924250961,-420.0,0.00032876,5]
[361985195,1747924250971,-434.97,0.00032876,5]
[361985196,1747924250980,-421.24,0.00032876,5]
[361985197,1747924250989,-2206.35,0.00032876,5]
[361985198,1747924250999,-420.0,0.00032876,5]
[361985199,1747924251008,-625.22,0.00032876,5]
[361985200,1747924251017,-427.76,0.00032876,5]
[361985201,1747924251026,-420.0,0.00032876,5]
[361985202,1747924251035,-467.65,0.00032876,5]
[361985203,1747924251045,-465.78,0.00032876,5]
[361985204,1747924251055,-553.71,0.00032876,5]
[361985205,1747924251067,-420.0,0.00032876,5]
[361985206,1747924251077,-1184.45,0.00032876,5]
[361985207,1747924251086,-169.73311517,0.00032876,5]
[361985208,1747924251095,-1422.77,0.00032876,5]
[361985209,1747924251105,-1247.82,0.00032876,5]
[361985210,1747924251114,-420.0,0.00032876,5]
[361985211,1747924251124,-420.0,0.00032876,5]
[361985212,1747924251134,-420.0,0.00032876,5]
[361985213,1747924251143,-426.65,0.00032876,5]
[361985214,1747924251154,-420.0,0.00032876,5]
[361985215,1747924251163,-1091.08,0.00032876,5]
[361985216,1747924251172,-832.88,0.00032876,5]
[361985217,1747924251182,-926.24,0.00032876,5]
[361985218,1747924251191,-420.0,0.00032876,5]
[361985219,1747924251200,-420.0,0.00032876,5]
[361985220,1747924251209,-1051.32,0.00032876,5]
[361985221,1747924251219,-420.0,0.00032876,5]
[361985222,1747924251228,-501.71071696,0.00032876,5]
[361985223,1747924251237,-420.0,0.00032876,5]
[361985224,1747924251246,-420.0,0.00032876,5]
[361985225,1747924251256,-420.0,0.00032876,5]
[361985226,1747924251266,-1057.17,0.00032876,5]
[361985227,1747924251275,-954.87,0.00032876,5]
[361985228,1747924251284,-1434.69,0.00032876,5]
[361985229,1747924251294,-420.0,0.00032876,5]
[361985230,1747924251304,-1496.87,0.00032876,5]
[361985231,1747924251316,-420.0,0.00032876,5]
[361985232,1747924251326,-420.0,0.00032876,5]
[361985233,1747924251336,-420.0,0.00032876,5]
[361985234,1747924251345,-1075.62,0.00032876,5]
[361985235,1747924251355,-919.6,0.00032876,5]
[361985236,1747924251364,-1303.99,0.00032876,5]
[361985237,1747924251374,-1197.27,0.00032876,5]
[361985238,1747924251384,-420.0,0.00032876,5]
[361985239,1747924251397,-420.0,0.00032876,5]
[361985240,1747924251407,-420.0,0.00032876,5]
[361985241,1747924251416,-420.0,0.00032876,5]
[361985242,1747924251426,-1570.22,0.00032876,5]
[361985243,1747924251541,-420.0,0.00032876,5]
[361985244,1747924251553,-420.0,0.00032876,5]
[361985245,1747924251565,-8852.92,0.00032876,2]
[361985246,1747924251576,-420.0,0.00032876,5]
[361985247,1747924251589,-420.0,0.00032876,5]
[361985248,1747924251599,-420.0,0.00032876,5]
[361985249,1747924251609,-754.21,0.00032876,5]
[361985250,1747924251618,-785.0,0.00032876,5]
[361985251,1747924251628,-3563.15,0.00032876,5]
[361985252,1747924251637,-463.43,0.00032876,5]
[361985253,1747924251647,-420.0,0.00032876,5]
[361985254,1747924251656,-420.0,0.00032876,5]
[361985255,1747924251666,-774.78,0.00032876,5]
[361985256,1747924251676,-13254.33,0.00032876,5]
[361985257,1747924251686,-2211.18,0.00032876,5]
[361985258,1747924251695,-1199.62,0.00032876,5]
[361985259,1747924251704,-420.0,0.00032876,5]
[361985260,1747924251714,-420.0,0.00032876,5]
[361985261,1747924251723,-420.0,0.00032876,5]
[361985262,1747924251732,-420.0,0.00032876,5]
[361985263,1747924251742,-151.0,0.00032876,7]
[361985264,1747924251752,-151.0,0.00032876,7]
[361985265,1747924251764,-420.0,0.00032876,5]
[361985266,1747924251774,-151.0,0.00032876,7]
[361985267,1747924251784,-151.0,0.00032876,7]
[361985268,1747924251794,-151.0,0.00032876,7]
[361985269,1747924251804,-889.72,0.00032876,5]
[361985270,1747924251816,-151.0,0.00032876,7]
[361985271,1747924251826,-151.0,0.00032876,7]
[361985272,1747924251835,-1136.85,0.00032876,5]
[361985273,1747924251844,-420.0,0.00032876,5]
[361985274,1747924251854,-151.0,0.00032876,7]
[361985275,1747924251864,-1145.31,0.00032876,5]
[361985276,1747924251873,-4112.27,0.00032876,5]
[361985277,1747924251882,-151.0,0.00032876,7]
[361985278,1747924251892,-276.429113,0.00032876,7]
[361985279,1747924251901,-420.0,0.00032876,5]
[361985280,1747924251911,-420.45,0.00032876,5]
[361985281,1747924251920,-421.64,0.00032876,5]
[361985282,1747924251929,-420.0,0.00032876,5]
[361985283,1747924251939,-420.0,0.00032876,5]
[361985284,1747924251948,-25000.0,0.00032876,2]
[361985285,1747924251958,-8602.6472295,0.00032877,2]
[361985286,1747924251968,-176878.83184822,0.00032877,2]
[361985287,1747924252057,-1112.80995982,0.00032877,2]
[361985288,1747924252071,-1344.8293152,0.00032877,2]
[361985289,1747924252083,-6652.17126744,0.00032877,2]
[361985290,1747924252095,-502.79073033,0.00032877,2]
[361985291,1747924252106,-466.53456229,0.00032877,2]
[361985292,1747924252116,-254.038258,0.00032877,7]
[361985293,1747924252127,-254.038258,0.00032877,7]
[361985294,1747924252138,-15548.3483846,0.00032877,2]
[361985295,1747924252147,-500.0,0.00032877,2]
[361985296,1747924252157,-151.0,0.00032877,7]
[361985297,1747924252167,-7000.0,0.0003288,120]
[361985298,1747924252178,-150.0,0.000329,2]
[361985299,1747924252188,-1700.0,0.000329,12]
[361985300,1747924252198,-150.0,0.00032903,5]
[361985301,1747924252208,-500.0,0.00032904,2]
[361985302,1747924252227,-208.66170482,0.00032931,5]
[361985303,1747924252238,-500.0,0.00032932,2]
[361985304,1747924252248,-5072.2887286,0.00032959,2]
[361985305,1747924252257,-500.0,0.00032959,2]
[361985306,1747924252267,-150.0,0.00032986,2]
[361985307,1747924252277,-500.0,0.00032987,2]
[361985308,1747924252287,-250.522147,0.00033,2]
[361985309,1747924252297,-200.0,0.00033,10]
[361985310,1747924252307,-2110.0,0.00033,2]
[361985311,1747924252318,-947.3199592,0.00033,32]
[361985312,1747924252328,-160.0,0.00033,2]
[361985313,1747924252338,-160.0,0.00033,2]
[361985314,1747924252348,-160.0,0.00033,2]
[361985315,1747924252357,-160.0,0.00033,2]
[361985316,1747924252367,-160.0,0.00033,2]
[361985317,1747924252377,-160.0,0.00033,2]
[361985318,1747924252387,-160.0,0.00033,2]
[361985319,1747924252396,-160.0,0.00033,2]
[361985320,1747924252406,-160.0,0.00033,2]
[361985321,1747924252416,-160.0,0.00033,2]
[361985322,1747924252425,-160.0,0.00033,2]
[361985323,1747924252435,-150.0,0.00033,14]
[361985324,1747924252446,-2300.61935419,0.00033,5]
[361985325,1747924252455,-766.0,0.00033,2]
[361985326,1747924252465,-4571.45799481,0.00033,2]
[361985327,1747924252474,-20886.80805121,0.00033,2]
[361985328,1747924252484,-237.0,0.00033,2]
[361985329,1747924252494,-375.0,0.00033,2]
[361985330,1747924252508,-235.92473347,0.00033012,2]
[361985331,1747924252517,-500.0,0.00033014,2]
[361985332,1747924252527,-500.0,0.00033041,2]
[361985333,1747924252538,-9700.78954242,0.00033051,2]
[361985334,1747924252550,-500.0,0.00033069,2]
[361985335,1747924252562,-500.0,0.00033096,2]
[361985336,1747924252571,-3329.1675,0.000331,12]
[361985337,1747924252582,-217.17672213,0.000331,2]
[361985338,1747924252591,-150.0,0.00033118,2]
[361985339,1747924252600,-500.0,0.00033124,2]
[361985340,1747924252611,-500.0,0.00033124,2]
[361985341,1747924252622,-500.0,0.00033124,2]
[361985342,1747924252633,-500.0,0.00033124,2]
[361985343,1747924252642,-500.0,0.00033124,2]
[361985344,1747924252651,-500.0,0.00033124,2]
[361985345,1747924252661,-504.0,0.00033124,2]
[361985346,1747924252670,-150.0,0.00033129,2]
[361985347,1747924252679,-21281.93339565,0.00033132,7]
[361985348,1747924252688,-254.038258,0.00033132,7]
[361985349,1747924252698,-254.038258,0.00033132,7]
[361985350,1747924252707,-151.0,0.00033132,7]
[361985351,1747924252717,-334.45434558,0.0003314,2]
[361985352,1747924252727,-5072.2887286,0.00033141,2]
[361985353,1747924252736,-2163.85,0.00033149,5]
[361985354,1747924252745,-971.28581236,0.00033149,5]
[361985355,1747924252762,-390.89331299,0.00033149,5]
[361985356,1747924252774,-801.67087465,0.00033149,5]
[361985357,1747924252783,-390.528829,0.0003315,5]
[361985358,1747924252792,-152.959474,0.0003315,5]
[361985359,1747924252801,-214.222131,0.0003315,5]
[361985360,1747924252811,-420.0,0.0003315,5]
[361985361,1747924252820,-420.0,0.0003315,5]
[361985362,1747924252830,-202.17801249,0.0003315,2]
[361985363,1747924252839,-420.0,0.0003315,5]
[361985364,1747924252849,-107.19634621,0.0003315,5]
[361985367,1747925147132,-150.32,0.00013699,2]
[361985368,1747925147154,-200.0,0.00015068,2]
[361985369,1747925147176,-150.32,0.00023182,2]
[361985370,1747925147197,-473.72,0.00029866,2]
[361985371,1747925147217,-664.78766142,0.00031665,2]
[361985372,1747925157464,-535.86361658,0.00031665,2]
[361985373,1747925157485,-198.57483361,0.00031711,2]
[361985374,1747925215605,498.0,0.00025,60]
[361985384,1747925398214,486.15792597,0.00025861,120]
[361985390,1747925431642,-204.0,0.00030851,2]
[361985391,1747925431652,-130.74144,0.00031,7]
[361985392,1747925431671,-4338.01085864,0.00031,7]
[361985393,1747925431682,-659.00119504,0.00031,7]
[361985394,1747925431692,-51.42516639,0.00031711,2]
[361985395,1747925431702,-1000.0,0.00031745,2]
[361985396,1747925431712,-150.0,0.00031824,7]
[361985397,1747925431722,-175.42,0.00032017,2]
[361985398,1747925431731,-150.0,0.0003207,2]
[361985399,1747925431741,-302.99,0.00032098,2]
[361985400,1747925431751,-509.0,0.00032116,30]
[361985401,1747925431761,-156.91,0.00032116,120]
[361985402,1747925431771,-1000.0,0.00032128,2]
[361985403,1747925431781,-955.44,0.0003213,2]
[361985404,1747925431790,-473.72,0.0003213,2]
[361985405,1747925431800,-334.8036,0.00032155,4]
[361985406,1747925431811,-400.0,0.000326,11]
[361985407,1747925431821,-150.32,0.00032666,2]
[361985408,1747925431830,-800.0,0.000327,11]
[361985409,1747925431840,-226.9465,0.00032756,2]
[361985410,1747925431850,-300.0,0.00032765,3]
[361985411,1747925431860,-567.5366,0.00032766,2]
[361985412,1747925431869,-1523.0212,0.00032766,2]
[361985413,1747925431879,-4850.39477121,0.00032776,2]
[361985414,1747925431889,-286.83183906,0.00032776,15]
[361985415,1747925431899,-3550.60211002,0.00032776,2]
[361985416,1747925431908,-166.20652745,0.00032776,2]
[361985418,1747925431918,-1200.0,0.000328,11]
[361985420,1747925431929,-968.78659,0.0003282,2]
[361985422,1747925431940,-150.0,0.00032855,2]
[361985424,1747925431949,-87618.44648673,0.00032856,2]
[361985426,1747925431959,-16016.38434594,0.00032856,2]
[361985429,1747925431969,-1527.05,0.00032865,33]
[361985432,1747925431978,-1988.63806701,0.00032866,2]
[361985435,1747925431988,-353.45,0.00032866,2]
[361985438,1747925431997,-500.0,0.00032873,5]
[361985440,1747925432007,-500.0,0.00032873,5]
[361985441,1747925432017,-500.0,0.00032875,2]
[361985443,1747925432027,-500.0,0.00032875,2]
[361985445,1747925432036,-500.0,0.00032875,2]
[361985447,1747925432046,-500.0,0.00032875,2]
[361985449,1747925432056,-500.0,0.00032875,2]
[361985451,1747925432066,-500.0,0.00032875,2]
[361985453,1747925432077,-500.0,0.00032875,2]
[361985455,1747925432086,-500.0,0.00032875,2]
[361985457,1747925432096,-500.0,0.00032875,2]
[361985459,1747925432106,-500.0,0.00032875,2]
[361985461,1747925432115,-500.0,0.00032875,2]
[361985463,1747925432124,-500.0,0.00032875,2]
[361985465,1747925432134,-500.0,0.00032875,2]
[361985467,1747925432144,-500.0,0.00032875,2]
[361985469,1747925432154,-500.0,0.00032875,2]
[361985470,1747925432163,-500.0,0.00032875,2]
[361985472,1747925432173,-500.0,0.00032875,2]
[361985474,1747925432182,-500.0,0.00032875,2]
[361985475,1747925432192,-500.0,0.00032875,2]
[361985476,1747925432202,-500.0,0.00032875,2]
[361985477,1747925432211,-500.0,0.00032875,2]
[361985478,1747925432220,-500.0,0.00032875,2]
[361985479,1747925432230,-500.0,0.00032875,2]
[361985480,1747925432243,-500.0,0.00032875,2]
[361985481,1747925432256,-500.0,0.00032875,2]
[361985482,1747925432266,-500.0,0.00032875,2]
[361985483,1747925432275,-500.0,0.00032875,2]
[361985484,1747925432284,-500.0,0.00032875,2]
[361985485,1747925432294,-500.0,0.00032875,2]
[361985486,1747925432303,-500.0,0.00032875,2]
[361985487,1747925432313,-500.0,0.00032875,2]
[361985488,1747925432324,-352.53141991,0.00032875,2]
[361985489,1747925432334,-500.0,0.00032875,2]
[361985490,1747925432343,-500.0,0.00032875,2]
[361985491,1747925432353,-500.0,0.00032875,2]
[361985492,1747925432363,-500.0,0.00032875,2]
[361985493,1747925432373,-500.0,0.00032875,2]
[361985494,1747925432383,-500.0,0.00032875,2]
[361985495,1747925432393,-500.0,0.00032875,2]
[361985496,1747925432402,-500.0,0.00032875,2]
[361985497,1747925432411,-500.0,0.00032875,2]
[361985498,1747925432422,-500.0,0.00032875,2]
[361985499,1747925432431,-208.69686182,0.00032875,2]
[361985500,1747925432440,-221.76425913,0.00032875,2]
[361985501,1747925432450,-420.0,0.00032876,5]
[361985502,1747925432459,-512.12,0.00032876,5]
[361985503,1747925432469,-420.0,0.00032876,5]
[361985504,1747925432479,-420.0,0.00032876,5]
[361985505,1747925432488,-690.27,0.00032876,5]
[361985506,1747925432497,-420.0,0.00032876,5]
[361985507,1747925432507,-420.0,0.00032876,5]
[361985508,1747925432516,-420.0,0.00032876,5]
[361985509,1747925432525,-420.0,0.00032876,5]
[361985510,1747925432535,-420.0,0.00032876,5]
[361985511,1747925432544,-420.0,0.00032876,5]
[361985512,1747925432554,-420.0,0.00032876,5]
[361985513,1747925432563,-420.0,0.00032876,5]
[361985514,1747925432573,-577.34,0.00032876,5]
[361985515,1747925432582,-420.0,0.00032876,5]
[361985516,1747925432591,-420.0,0.00032876,5]
[361985517,1747925432601,-446.24,0.00032876,5]
[361985518,1747925432610,-431.34,0.00032876,5]
[361985519,1747925432620,-420.0,0.00032876,5]
[361985520,1747925432629,-420.0,0.00032876,5]
[361985521,1747925432639,-420.0,0.00032876,5]
[361985522,1747925432648,-420.0,0.00032876,5]
[361985523,1747925432657,-420.0,0.00032876,5]
[361985524,1747925432666,-420.0,0.00032876,5]
[361985525,1747925432675,-420.0,0.00032876,5]
[361985526,1747925432685,-558.92,0.00032876,5]
[361985527,1747925432694,-420.0,0.00032876,5]
[361985528,1747925432704,-420.0,0.00032876,5]
[361985529,1747925432713,-600.51,0.00032876,5]
[361985530,1747925432722,-420.0,0.00032876,5]
[361985531,1747925432732,-1138.28,0.00032876,5]
[361985532,1747925432741,-530.73,0.00032876,5]
[361985533,1747925432750,-420.0,0.00032876,5]